bitfinex/quotes_SOLUSD_20260109
["timestamp","ask_amount","ask_price","bid_price","bid_amount"]
[1767978558376,12.1075676,139.67,139.62,13.77214096]
[1767978558956,0.69998733,139.66,139.62,13.77214096]
[1767978560082,0.69998733,139.66,139.63,7.16178471]
[1767978560391,12.1075676,139.68,139.63,7.85392567]
[1767978561492,0.69998733,139.67,139.63,7.85392567]
[1767978562867,12.1075676,139.69,139.64,0.69214096]
[1767978563292,11.40758027,139.69,139.65,13.08]
[1767978563486,0.69998733,139.7,139.65,25.17972123]
[1767978563789,12.1075676,139.69,139.65,13.08]
[1767978563980,0.69998733,139.68,139.65,13.08]
[1767978564986,0.69998733,139.68,139.66,7.16024631]
[1767978565188,0.69998733,139.68,139.65,13.08]
[1767978565484,0.69998733,139.67,139.64,20.24080001]
[1767978565885,0.69998733,139.67,139.64,13.08]
[1767978566372,0.69998733,139.67,139.64,20.24104236]
[1767978567083,0.69998733,139.66,139.61,12.09972123]
[1767978567298,0.69998733,139.62,139.59,7.16383695]
[1767978567597,0.69998733,139.6,139.59,13.08]
[1767978568496,12.1075676,139.62,139.59,13.08]
[1767978570000,0.69998733,139.66,139.61,0.69214096]
[1767978570186,0.69998733,139.63,139.59,38.84552591]
[1767978570394,0.69998733,139.63,139.59,20.93593354]
[1767978572385,0.69998733,139.63,139.59,50.25310618]
[1767978573483,12.06513851,139.65,139.59,50.25310618]
[1767978574184,0.65755824,139.64,139.59,50.25310618]
[1767978574897,0.65755824,139.64,139.6,0.7185558]
[1767978576404,0.65755824,139.64,139.61,7.16281068]
[1767978577282,0.65755824,139.63,139.6,7.1632001]
[1767978578299,3.41809616,139.65,139.6,7.8817559]
[1767978579002,3.41809616,139.63,139.59,20.96218477]
[1767978579212,3.41809616,139.63,139.59,20.24362897]
[1767978579397,0.65755824,139.62,139.59,20.24362897]
[1767978579903,0.65755824,139.62,139.58,7.26416919]
[1767978579904,0.65755824,139.61,139.58,7.26416919]
[1767978582807,2.76053792,139.62,139.58,7.26416919]
[1767978583007,0.65755824,139.62,139.58,7.98272499]
[1767978583310,3.41809616,139.62,139.58,7.26416919]
[1767978583518,3.41809616,139.61,139.58,0.1]
[1767978583807,0.65755824,139.6,139.58,0.1]
[1767978584218,3.41809616,139.61,139.58,0.1]
[1767978584515,0.65755824,139.6,139.58,0.1]
[1767978584721,0.65755824,139.59,139.58,0.1]
[1767978585313,0.65755824,139.6,139.58,0.1]
[1767978587705,2.76053792,139.61,139.58,0.1]
[1767978587902,3.41809616,139.61,139.58,0.1]
[1767978588206,3.48280641,139.63,139.58,0.75926887]
[1767978590008,3.48280641,139.63,139.59,7.16383695]
[1767978591320,0.72226849,139.63,139.59,7.82310582]
[1767978591512,0.72226849,139.63,139.6,13.08]
[1767978592201,3.48280641,139.65,139.61,7.82207955]
[1767978593309,0.72226849,139.65,139.61,7.82207955]
[1767978593517,3.48280641,139.65,139.61,7.82207955]
[1767978594216,2.76053792,139.64,139.61,7.82207955]
[1767978594428,3.48280641,139.64,139.61,7.16281068]
[1767978598908,0.72226849,139.64,139.61,7.82207955]
[1767978599224,13.08,139.68,139.6,13.08]
[1767978599225,3.48280641,139.63,139.6,13.08]
[1767978600230,0.72226849,139.63,139.6,20.24328176]
[1767978600736,0.72226849,139.67,139.6,20.90255063]
[1767978600908,0.72226849,139.67,139.63,0.65926887]
[1767978601235,0.72226849,139.66,139.63,13.08]
[1767978601606,0.72226849,139.65,139.61,7.82187353]
[1767978601837,3.48280641,139.65,139.62,13.08]
[1767978602019,0.72226849,139.65,139.62,13.08]
[1767978602839,0.72226849,139.65,139.62,20.2419914]
[1767978603133,0.72226849,139.65,139.62,7.1619914]
[1767978603638,0.72226849,139.65,139.61,7.82198825]
[1767978603930,0.72226849,139.65,139.61,20.90198825]
[1767978604116,0.72226849,139.65,139.61,23.66252617]
[1767978604619,0.72226849,139.65,139.61,20.24271938]
[1767978605029,0.72226849,139.65,139.61,23.6932375]
[1767978608221,0.72226849,139.65,139.61,23.0032573]
[1767978608937,0.66283486,139.62,139.58,62.0]
[1767978609128,0.66283486,139.61,139.58,0.1]
[1767978609833,0.66283486,139.6,139.58,0.1]
[1767978610029,3.42337278,139.62,139.58,7.26422331]
[1767978610336,0.66283486,139.62,139.58,10.02476123]
[1767978610846,0.66283486,139.62,139.58,10.71474143]
[1767978611135,0.66283486,139.61,139.58,7.26422331]
[1767978611322,0.66283486,139.6,139.58,0.1]
[1767978611519,3.42337278,139.62,139.58,0.7899802]
[1767978611827,0.66283486,139.61,139.58,0.1]
[1767978612237,0.66283486,139.62,139.59,2.76053792]
[1767978612543,3.42337278,139.64,139.59,3.45051812]
[1767978612735,0.66283486,139.63,139.59,3.45051812]
[1767978612936,0.66283486,139.63,139.59,0.6899802]
[1767978613138,0.66283486,139.62,139.58,7.26410249]
[1767978614041,0.66283486,139.62,139.59,7.16381264]
[1767978614441,0.66283486,139.61,139.58,7.26411501]
[1767978615447,3.42337278,139.63,139.58,10.71463313]
[1767978615639,0.66283486,139.63,139.59,3.45051812]
[1767978616041,0.66283486,139.63,139.58,25.17499049]
[1767978616042,0.66283486,139.62,139.58,10.71463313]
[1767978616745,0.66283486,139.62,139.58,7.95409521]
[1767978617043,0.66283486,139.62,139.58,10.71463313]
[1767978617846,0.66283486,139.62,139.58,7.95409521]
[1767978618030,0.66283486,139.61,139.58,7.26411501]
[1767978618643,0.66283486,139.61,139.58,0.1]
[1767978618845,0.66283486,139.58,139.56,0.2]
[1767978619150,3.42337278,139.57,139.55,0.2]
[1767978619338,3.42337278,139.58,139.55,8.05575957]
[1767978620157,0.66283486,139.6,139.56,0.6899802]
[1767978620326,0.66283486,139.61,139.56,0.6899802]
[1767978620522,2.76053792,139.6,139.56,0.6899802]
[1767978620951,3.42337278,139.6,139.56,0.6899802]
[1767978621252,3.42337278,139.6,139.57,7.1648635]
[1767978621827,3.42337278,139.59,139.56,7.16515615]
[1767978624148,3.42337278,139.58,139.55,7.36568549]
[1767978624554,0.66283486,139.59,139.56,0.6899802]
[1767978624728,2.76053792,139.6,139.56,0.6899802]
[1767978626028,2.76053792,139.61,139.58,0.6899802]
[1767978626649,2.76053792,139.62,139.58,0.6899802]
[1767978627951,0.66283486,139.61,139.57,25.07702227]
[1767978628155,0.66283486,139.6,139.57,25.07702227]
[1767978628664,2.76053792,139.61,139.58,0.6899802]
[1767978629155,3.42337278,139.61,139.58,7.16390688]
[1767978630131,3.42337278,139.61,139.58,7.85388708]
[1767978630338,2.76053792,139.61,139.58,7.85388708]
[1767978631065,3.42337278,139.63,139.59,0.6899802]
[1767978631535,3.42337278,139.63,139.59,7.85355399]
[1767978631939,0.66283486,139.63,139.59,7.85355399]
[1767978632237,3.42337278,139.63,139.59,7.85355399]
[1767978632832,0.65382549,139.62,139.58,25.07522567]
[1767978633028,0.65382549,139.61,139.58,7.16435019]
[1767978633266,2.76053792,139.62,139.58,7.81781307]
[1767978633556,3.41436341,139.62,139.58,7.81781307]
[1767978633946,0.65382549,139.61,139.58,7.16435019]
[1767978634257,2.76053792,139.62,139.58,7.81781307]
[1767978634950,3.41436341,139.63,139.59,0.65346288]
[1767978636538,4.96817377,139.63,139.59,0.65346288]
[1767978637262,0.65382549,139.64,139.6,7.81678666]
[1767978637446,20.2399722,139.67,139.62,0.65346288]
[1767978637447,4.31434828,139.66,139.62,0.65346288]
[1767978637645,0.65382549,139.65,139.62,0.65346288]
[1767978637848,4.96817377,139.65,139.62,0.65346288]
[1767978638053,0.65382549,139.65,139.6,43.11944439]
[1767978638749,0.65382549,139.65,139.61,0.65346288]
[1767978639249,0.65382549,139.65,139.61,7.81606667]
[1767978639447,4.96817377,139.65,139.61,7.81606667]
[1767978641157,4.96817377,139.64,139.61,7.16260379]
[1767978642643,4.31434828,139.64,139.61,7.81606667]
[1767978642963,4.96817377,139.65,139.61,7.81606667]
[1767978643470,4.31434828,139.64,139.61,7.81606667]
[1767978643671,0.65382549,139.63,139.6,20.24308982]
[1767978644162,0.65382549,139.63,139.6,7.8165527]
[1767978644459,4.96817377,139.64,139.6,7.81659352]
[1767978645756,4.96817377,139.61,139.58,7.16407158]
[1767978647142,4.31434828,139.61,139.58,7.81753446]
[1767978647365,4.96817377,139.61,139.58,7.16407158]
[1767978647591,24.55533649,139.65,139.55,0.2]
[1767978647592,0.65382549,139.58,139.55,0.2]
[1767978648064,0.65382549,139.58,139.55,8.01922543]
[1767978648270,5.02926341,139.59,139.55,8.01922543]
[1767978649779,0.71491513,139.58,139.55,0.2]
[1767978650113,4.31434828,139.56,139.5,0.6680121]
[1767978650242,4.31434828,139.53,139.51,0.6680121]
[1767978650442,0.28432314,139.57,139.51,0.6680121]
[1767978650680,4.31434828,139.57,139.52,0.6680121]
[1767978650970,4.31434828,139.56,139.52,0.6680121]
[1767978651175,4.31434828,139.55,139.52,0.6680121]
[1767978652164,4.31434828,139.55,139.52,7.83534132]
[1767978652966,0.2793723,139.59,139.53,0.6680121]
[1767978653268,0.2793723,139.59,139.52,7.16732922]
[1767978653269,4.31434828,139.56,139.52,7.16732922]
[1767978654162,4.31434828,139.56,139.51,7.16794495]
[1767978654375,0.33696856,139.57,139.51,7.16794495]
[1767978654548,4.31434828,139.55,139.51,7.16794495]
[1767978654749,0.10137969,139.56,139.51,7.16794495]
[1767978655052,0.33937229,139.58,139.53,0.6680121]
[1767978655264,4.31434828,139.57,139.53,0.6680121]
[1767978655663,4.31434828,139.56,139.53,0.6680121]
[1767978656261,4.31434828,139.56,139.53,7.83448812]
[1767978656978,4.31434828,139.56,139.51,22.23421065]
[1767978656979,4.31434828,139.55,139.52,7.83505619]
[1767978659867,4.31434828,139.54,139.51,7.83593571]
[1767978660376,4.65372057,139.55,139.51,7.83593571]
[1767978660578,1.05601267,139.58,139.52,0.6680121]
[1767978660877,4.31434828,139.56,139.52,0.6680121]
[1767978661079,0.71664038,139.58,139.53,0.6680121]
[1767978661255,4.65131684,139.57,139.52,0.6680121]
[1767978661573,13.79664038,139.6,139.52,0.6680121]
[1767978661774,4.31434828,139.56,139.53,0.6680121]
[1767978662152,4.31434828,139.56,139.54,7.83441599]
[1767978662354,4.31434828,139.56,139.54,7.71441606]
[1767978662775,4.31434828,139.56,139.53,7.86311132]
[1767978663169,4.31434828,139.56,139.53,7.16676236]
[1767978663368,4.31434828,139.54,139.49,14.11537191]
[1767978663577,13.79664038,139.55,139.46,13.08]
[1767978663578,4.31434828,139.5,139.47,0.69634896]
[1767978663873,4.31434828,139.49,139.47,0.69634896]
[1767978664259,4.31434828,139.5,139.47,7.86619164]
[1767978664760,4.31434828,139.5,139.47,0.69634896]
[1767978664956,4.31434828,139.5,139.47,7.86628975]
[1767978665261,4.31434828,139.49,139.46,7.86674336]
[1767978665451,4.31434828,139.48,139.46,0.69634896]
[1767978665656,4.31434828,139.47,139.45,0.1]
[1767978665859,4.31434828,139.46,139.45,0.1]
[1767978666058,4.31434828,139.46,139.44,0.1]
[1767978666261,4.31434828,139.46,139.43,20.94834533]
[1767978666458,20.53312017,139.5,139.43,20.94834533]
[1767978666459,20.53312017,139.5,139.43,7.86834533]
[1767978666682,4.31434828,139.46,139.43,7.86834533]
[1767978666862,4.31434828,139.46,139.43,7.17199637]
[1767978667178,4.31434828,139.46,139.43,7.1719112]
[1767978667370,4.31434828,139.46,139.42,0.1]
[1767978667371,4.31434828,139.44,139.42,0.1]
[1767978667676,4.31434828,139.44,139.42,0.06538733]
[1767978668077,4.31434828,139.43,139.42,0.06538733]
[1767978668274,4.31434828,139.43,139.41,0.1]
[1767978668588,4.31434828,139.43,139.38,0.69634896]
[1767978668589,13.08,139.45,139.38,0.69634896]
[1767978668773,4.31434828,139.41,139.38,0.69634896]
[1767978668979,4.31434828,139.42,139.38,0.69634896]
[1767978669166,4.31434828,139.44,139.38,7.8708307]
[1767978669369,4.31434828,139.41,139.39,0.69634896]
[1767978669884,4.31434828,139.41,139.38,7.8708307]
[1767978670091,4.31434828,139.4,139.38,0.69634896]
[1767978670259,4.31434828,139.41,139.38,7.8708907]
[1767978670576,4.31434828,139.41,139.39,0.69634896]
[1767978670776,4.31434828,139.4,139.39,0.69634896]
[1767978671563,4.31434828,139.4,139.37,0.69634896]
[1767978671770,4.31434828,139.39,139.38,0.69634896]
[1767978672078,4.31434828,139.39,139.37,0.69634896]
[1767978672265,4.31434828,139.41,139.38,0.69634896]
[1767978672468,4.31434828,139.4,139.38,0.69634896]
[1767978672980,4.31434828,139.4,139.37,7.87099225]
[1767978673183,4.31434828,139.39,139.37,7.87145944]
[1767978673480,4.31434828,139.39,139.37,0.69634896]
[1767978673684,4.31434828,139.38,139.36,0.69634896]
[1767978673914,4.31434828,139.44,139.38,0.69634896]
[1767978674065,4.31434828,139.43,139.38,0.69634896]
[1767978674262,13.08,139.45,139.39,0.69634896]
[1767978674598,4.31434828,139.42,139.39,0.69634896]
[1767978675084,13.08,139.45,139.39,0.69634896]
[1767978675261,4.31434828,139.43,139.39,0.69634896]
[1767978675462,4.31434828,139.42,139.39,0.69634896]
[1767978675679,0.71664038,139.45,139.39,0.69634896]
[1767978675986,0.71664038,139.45,139.38,25.11082486]
[1767978675987,4.31434828,139.45,139.41,0.69634896]
[1767978676183,5.03098866,139.47,139.43,0.69634896]
[1767978676387,5.03098866,139.47,139.44,0.69634896]
[1767978676880,4.31434828,139.45,139.42,0.69634896]
[1767978677084,4.31434828,139.45,139.42,7.86887866]
[1767978677379,4.31434828,139.45,139.42,0.69634896]
[1767978677581,4.31434828,139.45,139.42,7.86887761]
[1767978678199,4.31434828,139.44,139.42,0.69634896]
[1767978678403,4.31434828,139.43,139.4,7.86955495]
[1767978678604,4.31434828,139.44,139.41,0.69634896]
[1767978679400,0.71664038,139.46,139.43,0.69634896]
[1767978679578,4.31434828,139.47,139.43,0.69634896]
[1767978679778,0.71664038,139.46,139.43,0.69634896]
[1767978680098,4.31434828,139.47,139.43,0.69634896]
[1767978680398,5.03098866,139.48,139.44,0.69634896]
[1767978681588,5.03098866,139.48,139.43,12.18251004]
[1767978682495,12.18874387,139.48,139.43,19.34026525]
[1767978683002,11.47210349,139.47,139.44,7.86788797]
[1767978683198,12.18874387,139.48,139.44,7.86788797]
[1767978683407,11.47210349,139.47,139.44,7.86788797]
[1767978684207,12.18874387,139.48,139.44,7.86788797]
[1767978685502,0.71664038,139.48,139.44,7.86788797]
[1767978685799,12.18874387,139.48,139.44,7.86788797]
[1767978686000,12.18874387,139.48,139.44,0.69634896]
[1767978687489,11.47210349,139.45,139.39,18.63127353]
[1767978687692,11.47210349,139.43,139.4,0.69634896]
[1767978687899,11.47210349,139.42,139.38,0.69634896]
[1767978688209,11.47210349,139.42,139.38,7.87080649]
[1767978688802,0.71664038,139.44,139.38,7.87088906]
[1767978689008,11.47210349,139.41,139.39,0.69634896]
[1767978689200,0.71664038,139.44,139.39,0.69634896]
[1767978689201,11.47210349,139.42,139.39,0.69634896]
[1767978690307,0.71664038,139.44,139.39,0.69634896]
[1767978690511,11.47210349,139.42,139.39,7.87042002]
[1767978691206,11.47210349,139.41,139.39,0.69634896]
[1767978691505,11.47210349,139.42,139.39,0.69634896]
[1767978691809,11.47210349,139.41,139.38,0.69634896]
[1767978692020,7.88819435,139.44,139.38,0.69634896]
[1767978692190,11.47210349,139.42,139.39,0.69634896]
[1767978693505,11.47210349,139.41,139.38,0.69397908]
[1767978694194,11.47210349,139.41,139.38,7.86858443]
[1767978694594,11.47210349,139.42,139.38,7.86858443]
[1767978694898,13.81664038,139.44,139.39,0.69397908]
[1767978695100,11.47210349,139.42,139.39,0.69397908]
[1767978696097,13.81664038,139.44,139.4,0.69397908]
[1767978696400,13.81664038,139.44,139.41,0.69397908]
[1767978696401,0.71664038,139.44,139.41,0.69397908]
[1767978697390,24.57210349,139.45,139.42,0.69397908]
[1767978697794,11.47210349,139.47,139.44,0.69397908]
[1767978698396,0.71664038,139.48,139.45,0.69397908]
[1767978698591,7.05998243,139.47,139.43,7.17157834]
[1767978698907,7.77662281,139.46,139.43,7.17157834]
[1767978699114,7.05998243,139.45,139.42,0.69397908]
[1767978699316,7.77662281,139.46,139.42,7.86653095]
[1767978700920,0.71664038,139.46,139.42,7.86653095]
[1767978701124,7.05998243,139.46,139.42,7.86653095]
[1767978701310,0.71664038,139.45,139.42,7.86653095]
[1767978702116,0.71664038,139.45,139.42,7.17255187]
[1767978702500,0.71664038,139.45,139.4,20.15998243]
[1767978702699,7.05998243,139.45,139.4,20.15998243]
[1767978703021,0.71664038,139.44,139.4,27.33328211]
[1767978703410,0.71664038,139.44,139.41,7.17306441]
[1767978704514,0.71664038,139.44,139.4,9.94220046]
[1767978705007,3.4852397,139.44,139.4,7.17360114]
[1767978705623,0.71664038,139.44,139.4,7.17360114]
[1767978705805,0.71664038,139.46,139.4,7.17360114]
[1767978706006,2.76859932,139.44,139.4,7.17360114]
[1767978706627,2.76859932,139.44,139.3,0.69397908]
[1767978706628,2.76859932,139.41,139.3,0.69397908]
[1767978706933,2.76859932,139.35,139.33,0.69397908]
[1767978707102,13.1,139.4,139.33,0.69397908]
[1767978707304,2.76859932,139.38,139.33,0.69397908]
[1767978707498,0.28432314,139.39,139.34,0.69397908]
[1767978707721,2.76859932,139.36,139.34,0.69397908]
[1767978707928,2.76859932,139.36,139.31,28.58640295]
[1767978708711,2.76859932,139.36,139.31,25.81780363]
[1767978709115,2.76859932,139.36,139.31,28.58640295]
[1767978709429,2.76859932,139.36,139.31,25.81780363]
[1767978709608,13.1,139.4,139.33,2.76859932]
[1767978709609,7.17375202,139.4,139.33,2.76859932]
[1767978709810,18.38883341,139.39,139.32,0.71273422]
[1767978710010,2.76859932,139.37,139.32,3.48133354]
[1767978710229,5.28883341,139.38,139.33,2.76859932]
[1767978710230,2.76859932,139.38,139.33,2.76859932]
[1767978710827,2.76859932,139.38,139.33,9.94580451]
[1767978711010,13.1,139.39,139.33,9.94580451]
[1767978711210,5.28992519,139.38,139.33,7.17720519]
[1767978711444,2.76859932,139.38,139.33,9.94580451]
[1767978712029,2.76859932,139.37,139.33,7.17720519]
[1767978712226,2.76859932,139.36,139.32,7.89038711]
[1767978712431,2.76859932,139.36,139.32,10.65898643]
[1767978712927,2.76859932,139.36,139.32,9.94625221]
[1767978713139,7.17427877,139.39,139.32,7.17765289]
[1767978713310,5.28838506,139.38,139.31,10.65948437]
[1767978713510,2.76859932,139.35,139.31,7.89088505]
[1767978713707,0.28432314,139.38,139.32,10.65896791]
[1767978713912,2.76859932,139.37,139.33,2.76859932]
[1767978714113,2.76859932,139.41,139.36,3.48133354]
[1767978714408,0.71664038,139.4,139.36,3.48133354]
[1767978715027,0.71664038,139.4,139.36,7.88813487]
[1767978715233,0.71664038,139.42,139.38,2.76859932]
[1767978715646,3.4852397,139.42,139.37,2.76859932]
[1767978716232,0.71664038,139.42,139.38,2.76859932]
[1767978716443,35.10325347,139.44,139.38,9.94303738]
[1767978716444,3.4852397,139.43,139.38,9.94303738]
[1767978716640,7.78131397,139.43,139.38,14.23911165]
[1767978716939,7.78131397,139.43,139.38,7.17443806]
[1767978717250,7.78131397,139.43,139.38,14.23911165]
[1767978717932,0.71664038,139.43,139.39,0.71273422]
[1767978718140,0.71664038,139.43,139.39,7.17400213]
[1767978718322,7.78131397,139.43,139.39,7.17400213]
[1767978719047,0.71664038,139.43,139.39,14.23867572]
[1767978720022,0.71664038,139.43,139.39,7.17400213]
[1767978720425,0.71664038,139.43,139.39,14.23867572]
[1767978720928,0.71664038,139.43,139.39,7.17400213]
[1767978721246,0.71664038,139.43,139.39,14.23867572]
[1767978721744,24.60584774,139.47,139.39,14.23867572]
[1767978721745,17.92032304,139.51,139.42,0.71273422]
[1767978721929,7.06467359,139.48,139.43,7.06467359]
[1767978722129,7.06467359,139.49,139.44,7.06467359]
[1767978722337,5.28610581,139.48,139.44,7.06467359]
[1767978722539,5.28610581,139.47,139.43,7.88445707]
[1767978722749,5.28610581,139.47,139.43,14.94913066]
[1767978723121,5.28610581,139.47,139.43,25.81460122]
[1767978723325,7.06467359,139.48,139.43,25.101867]
[1767978723535,12.38783807,139.47,139.43,7.832051]
[1767978723826,7.06467359,139.45,139.41,7.17293597]
[1767978724026,7.06467359,139.45,139.41,14.23760956]
[1767978724237,5.32274396,139.44,139.41,14.23760956]
[1767978724442,7.06467359,139.46,139.41,14.23760956]
[1767978724636,5.32297242,139.45,139.41,14.23760956]
[1767978724835,5.32297242,139.44,139.42,7.06467359]
[1767978725137,20.16467359,139.47,139.42,7.06467359]
[1767978725345,5.32368715,139.46,139.43,7.06467359]
[1767978725545,5.32368715,139.45,139.43,7.06467359]
[1767978725727,20.16467359,139.47,139.43,7.06467359]
[1767978725927,5.32381385,139.46,139.43,7.06467359]
[1767978726128,0.28432314,139.49,139.44,7.06467359]
[1767978726329,5.32430095,139.48,139.44,7.06467359]
[1767978726529,5.32430095,139.47,139.44,7.06467359]
[1767978726750,5.32430095,139.46,139.44,7.06467359]
[1767978726933,20.16467359,139.49,139.44,7.06467359]
[1767978727134,5.32531672,139.48,139.45,7.06467359]
[1767978727440,7.06467359,139.46,139.39,0.66032815]
[1767978727752,7.06467359,139.44,139.39,7.72500174]
[1767978728133,5.32501341,139.43,139.39,7.72500174]
[1767978728331,7.06467359,139.43,139.38,7.06467359]
[1767978728536,5.32473308,139.42,139.38,14.23920786]
[1767978728745,7.06467359,139.43,139.38,14.23920786]
[1767978728946,5.32618259,139.42,139.39,7.17410381]
[1767978729257,7.06467359,139.43,139.38,14.23908556]
[1767978729554,5.32799901,139.42,139.39,7.17402121]
[1767978729858,0.28432314,139.44,139.39,7.17402121]
[1767978729859,0.28432314,139.44,139.39,7.83434936]
[1767978730156,12.39362241,139.43,139.39,7.83434936]
[1767978730359,7.06467359,139.43,139.39,7.83434936]
[1767978730965,7.06467359,139.45,139.41,0.66032815]
[1767978731257,5.33067994,139.44,139.41,0.66032815]
[1767978731430,7.06467359,139.45,139.41,0.66032815]
[1767978731631,5.33236272,139.44,139.41,0.66032815]
[1767978731855,7.06467359,139.45,139.41,0.66032815]
[1767978732159,5.33546262,139.44,139.41,7.1726754]
[1767978732362,7.06467359,139.44,139.41,7.1726754]
[1767978732657,12.40144515,139.43,139.39,7.17394865]
[1767978732860,7.06467359,139.42,139.39,7.17394865]
[1767978733237,7.06467359,139.42,139.39,7.8342768]
[1767978733437,7.06467359,139.43,139.39,7.8342768]
[1767978733760,13.1,139.46,139.39,0.66032815]
[1767978734064,7.06467359,139.44,139.4,7.17360114]
[1767978734364,5.33641477,139.43,139.4,7.17360114]
[1767978737165,13.1,139.46,139.4,7.17360114]
[1767978737366,7.06467359,139.44,139.4,7.83392929]
[1767978737562,5.34025934,139.43,139.4,7.17360114]
[1767978737864,12.40493293,139.43,139.39,7.17390797]
[1767978738038,7.06467359,139.43,139.39,7.17390797]
[1767978738443,20.27074108,139.46,139.39,7.17390797]
[1767978738665,2.76927099,139.43,139.39,7.83423612]
[1767978739164,2.76927099,139.42,139.39,7.83423612]
[1767978739362,21.15564891,139.5,139.42,0.66032815]
[1767978739558,2.76927099,139.48,139.43,0.66032815]
[1767978739763,2.76927099,139.48,139.43,2.76927099]
[1767978739764,5.34151707,139.47,139.43,2.76927099]
[1767978740669,5.34151707,139.47,139.44,7.17154331]
[1767978741166,8.11078806,139.47,139.43,7.17182291]
[1767978741362,2.76927099,139.47,139.43,7.17182291]
[1767978741556,5.34374765,139.46,139.43,7.17182291]
[1767978741761,2.87382814,139.47,139.43,7.17182291]
[1767978742067,5.34346488,139.46,139.43,7.17182291]
[1767978742363,0.10455715,139.47,139.43,9.9410939]
[1767978742546,5.34233125,139.46,139.43,14.23160697]
[1767978742747,0.099,139.48,139.44,7.05978406]
[1767978743059,5.34187647,139.47,139.43,14.89193512]
[1767978743260,5.34187647,139.46,139.43,14.89193512]
[1767978743462,7.15878406,139.48,139.43,14.89193512]
[1767978743674,5.34196868,139.47,139.43,14.89193512]
[1767978743848,7.15878406,139.48,139.43,14.89193512]
[1767978744050,7.15878406,139.48,139.43,32.82207927]
[1767978745468,13.05471568,139.47,139.43,7.17182291]
[1767978745667,5.34021676,139.46,139.43,7.17182291]
[1767978745844,7.71449892,139.47,139.43,7.17182291]
[1767978746049,5.3393586,139.46,139.43,7.17182291]
[1767978746373,7.71449892,139.47,139.43,7.17182291]
[1767978746666,5.33907372,139.46,139.43,7.17182291]
[1767978746969,7.71449892,139.47,139.43,7.17182291]
[1767978747170,5.44469373,139.46,139.43,7.17182291]
[1767978747362,7.16434121,139.46,139.43,7.17182291]
[1767978749269,5.34043222,139.45,139.43,7.17182291]
[1767978749468,7.16434121,139.46,139.43,7.17182291]
[1767978749675,5.34061985,139.45,139.43,7.17182291]
[1767978749867,7.16434121,139.46,139.43,7.17182291]
[1767978750066,13.04967921,139.45,139.41,0.66032815]
[1767978750272,7.05978406,139.44,139.41,7.83316385]
[1767978751073,7.16978777,139.44,139.41,7.17307645]
[1767978752173,0.11000371,139.44,139.41,7.17307645]
[1767978752475,7.16978777,139.44,139.41,7.17307645]
[1767978753385,7.05978406,139.44,139.41,7.17307645]
[1767978755786,7.05978406,139.48,139.44,0.70827633]
[1767978755967,12.40963992,139.47,139.44,0.70827633]
[1767978756170,5.34985586,139.46,139.44,0.70827633]
[1767978756382,7.05978406,139.47,139.44,0.70827633]
[1767978756687,7.05978406,139.46,139.43,0.70827633]
[1767978756861,0.11000371,139.45,139.41,7.88135278]
[1767978757062,7.05978406,139.42,139.38,12.97820824]
[1767978757261,61.22063447,139.49,139.33,7.88534062]
[1767978757262,7.05978406,139.39,139.33,7.88534062]
[1767978757478,25.1016363,139.44,139.34,0.70827633]
[1767978757791,7.72827932,139.39,139.34,7.76806039]
[1767978757974,0.66849526,139.39,139.34,7.76806039]
[1767978758288,7.72827932,139.39,139.35,0.70827633]
[1767978758593,7.72827932,139.39,139.34,7.05978406]
[1767978758776,7.72827932,139.38,139.34,7.17633029]
[1767978758974,7.72827932,139.38,139.34,7.88460662]
[1767978759385,0.66849526,139.37,139.33,7.17707453]
[1767978759591,7.72827932,139.37,139.33,7.17707453]
[1767978759890,7.72827932,139.37,139.33,7.88535086]
[1767978760081,0.66849526,139.37,139.33,7.88535086]
[1767978760387,0.66849526,139.37,139.33,14.94513492]
[1767978760586,0.66849526,139.37,139.33,19.37416849]
[1767978761183,12.15731289,139.39,139.35,11.48881763]
[1767978761383,13.76849526,139.39,139.35,11.48881763]
[1767978762287,7.17311422,139.41,139.37,11.48881763]
[1767978762288,0.66849526,139.41,139.37,11.48881763]
[1767978762592,12.15731289,139.44,139.39,12.19709396]
[1767978762883,11.48881763,139.43,139.39,0.70827633]
[1767978763088,11.48881763,139.43,139.39,12.13709398]
[1767978763492,12.15731289,139.43,139.39,0.64827635]
[1767978764066,0.66849526,139.42,139.38,18.66338342]
[1767978764489,0.66849526,139.42,139.38,7.17456579]
[1767978764688,0.66849526,139.42,139.38,11.50191251]
[1767978764880,0.66849526,139.42,139.39,4.32734672]
[1767978765070,0.66849526,139.42,139.39,11.50144081]
[1767978766195,0.66849526,139.4,139.35,0.70827633]
[1767978766373,0.66849526,139.4,139.36,7.88349465]
[1767978766696,4.99584198,139.4,139.36,7.88349465]
[1767978767202,4.32734672,139.39,139.37,0.70827633]
[1767978767373,4.32734672,139.4,139.36,7.17557107]
[1767978767575,4.32734672,139.39,139.35,7.17615497]
[1767978767879,0.66849526,139.37,139.33,7.17675041]
[1767978768073,0.66849526,139.36,139.32,11.50494702]
[1767978768472,4.99584198,139.36,139.32,7.1776003]
[1767978768893,0.66183103,139.35,139.32,7.1776003]
[1767978769104,7.17425553,139.39,139.32,7.1776003]